[Event "Titled Tuesday Blitz August 24 2021"]
[White "Damjanovic, Vladimir"]
[Black "Jarovinsky, Alexey"]
[WhiteFideId "903795"]
[BlackFideId "14115131"]
[WhiteElo "2542"]
[BlackElo "2783"]
[Result "0-1"]
[Round "03"]
[TimeControl "180+1"]
[Date "2021.08.24"]
[WhiteClock "0:00:04"]
[BlackClock "0:00:39"]

1. Nf3 {[%clk 0:02:59]}  Nc6 {[%clk 0:03:00]} 2. e4 {[%clk 0:02:58]}  d6 {[%clk 0:02:58]} 3. d4 {[%clk 0:02:58]}  Nf6 {[%clk 0:02:53]} 4. d5 {[%clk 0:02:55]}  Nb8 {[%clk 0:02:51]} 5. Nc3 {[%clk 0:02:54]}  Bg4 {[%clk 0:02:48]} 6. Be2 {[%clk 0:02:37]}  Nbd7 {[%clk 0:02:46]} 7. O-O {[%clk 0:02:37]}  g6 {[%clk 0:02:46]} 8. Be3 {[%clk 0:02:30]}  Bg7 {[%clk 0:02:45]} 9. a4 {[%clk 0:02:28]}  O-O {[%clk 0:02:43]} 10. a5 {[%clk 0:02:28]}  a6 {[%clk 0:02:39]} 11. h3 {[%clk 0:02:05]}  Bxf3 {[%clk 0:02:38]} 12. Bxf3 {[%clk 0:02:06]}  Re8 {[%clk 0:02:07]} 13. Re1 {[%clk 0:01:59]}  Ne5 {[%clk 0:01:56]} 14. Be2 {[%clk 0:01:58]}  e6 {[%clk 0:01:57]} 15. dxe6 {[%clk 0:01:41]}  Rxe6 {[%clk 0:01:58]} 16. Bf1 {[%clk 0:01:37]}  Ned7 {[%clk 0:01:33]} 17. Bd4 {[%clk 0:01:15]}  Qe8 {[%clk 0:01:08]} 18. Bd3 {[%clk 0:00:46]}  Rd8 {[%clk 0:00:57]} 19. Qd2 {[%clk 0:00:34]}  Nc5 {[%clk 0:00:50]} 20. f3 {[%clk 0:00:08]}  Nxd3 {[%clk 0:00:44]} 21. cxd3 {[%clk 0:00:04]}  c6 {[%clk 0:00:39]} 0-1


[Site "https://www.chess.com"]

[Event "Titled Tuesday Blitz August 24 2021"]
[White "Darini, Pouria"]
[Black "Delorme, Alban"]
[WhiteFideId "12502200"]
[BlackFideId "623636"]
[WhiteElo "2489"]
[BlackElo "2197"]
[Result "1/2-1/2"]
[Round "03"]
[TimeControl "180+1"]
[Date "2021.08.24"]
[WhiteClock "0:00:21"]
[BlackClock "0:00:45"]

1. e4 {[%clk 0:03:00]}  c5 {[%clk 0:02:59]} 2. Nf3 {[%clk 0:03:01]}  Nc6 {[%clk 0:02:59]} 3. Bb5 {[%clk 0:03:00]}  e5 {[%clk 0:02:58]} 4. O-O {[%clk 0:02:57]}  Nge7 {[%clk 0:02:54]} 5. c3 {[%clk 0:02:57]}  Ng6 {[%clk 0:02:34]} 6. d4 {[%clk 0:02:56]}  exd4 {[%clk 0:02:33]} 7. cxd4 {[%clk 0:02:56]}  cxd4 {[%clk 0:02:18]} 8. Nxd4 {[%clk 0:02:56]}  Qb6 {[%clk 0:02:19]} 9. Bxc6 {[%clk 0:02:29]}  dxc6 {[%clk 0:02:20]} 10. Be3 {[%clk 0:02:28]}  Bc5 {[%clk 0:02:14]} 11. Nc3 {[%clk 0:02:26]}  Qd8 {[%clk 0:02:07]} 12. Nxc6 {[%clk 0:02:16]}  Qxd1 {[%clk 0:02:06]} 13. Raxd1 {[%clk 0:02:16]}  Bg4 {[%clk 0:01:59]} 14. Bxc5 {[%clk 0:02:03]}  Bxd1 {[%clk 0:01:58]} 15. Nxa7 {[%clk 0:01:40]}  Bc2 {[%clk 0:01:58]} 16. Ncb5 {[%clk 0:01:35]}  Nf4 {[%clk 0:01:52]} 17. Nc7+ {[%clk 0:01:23]}  Kd7 {[%clk 0:01:52]} 18. Nxa8 {[%clk 0:01:24]}  Ne2+ {[%clk 0:01:50]} 19. Kh1 {[%clk 0:01:24]}  Rxa8 {[%clk 0:01:51]} 20. f3 {[%clk 0:01:13]}  b6 {[%clk 0:01:46]} 21. Bxb6 {[%clk 0:01:11]}  Rb8 {[%clk 0:01:46]} 22. Be3 {[%clk 0:01:09]}  Rxb2 {[%clk 0:01:43]} 23. Re1 {[%clk 0:01:05]}  Ba4 {[%clk 0:01:43]} 24. a3 {[%clk 0:00:54]}  f6 {[%clk 0:01:42]} 25. h4 {[%clk 0:00:51]}  h5 {[%clk 0:01:38]} 26. Kh2 {[%clk 0:00:50]}  Kc7 {[%clk 0:01:31]} 27. f4 {[%clk 0:00:42]}  Kd7 {[%clk 0:01:22]} 28. e5 {[%clk 0:00:33]}  fxe5 {[%clk 0:01:13]} 29. fxe5 {[%clk 0:00:33]}  Ke6 {[%clk 0:01:14]} 30. Nc8 {[%clk 0:00:34]}  Rc2 {[%clk 0:01:05]} 31. Nd6 {[%clk 0:00:19]}  Bc6 {[%clk 0:00:57]} 32. a4 {[%clk 0:00:15]}  Nc3 {[%clk 0:00:54]} 33. Rg1 {[%clk 0:00:15]}  Bxa4 {[%clk 0:00:50]} 34. Rc1 {[%clk 0:00:10]}  Kxe5 {[%clk 0:00:45]} 35. Rxc2 {[%clk 0:00:04]}  Bxc2 {[%clk 0:00:46]} 36. Nf7+ {[%clk 0:00:04]}  Kf6 {[%clk 0:00:44]} 37. Ng5 {[%clk 0:00:04]}  Ne4 {[%clk 0:00:45]} 38. Bd4+ {[%clk 0:00:04]}  Kf5 {[%clk 0:00:40]} 39. Nxe4 {[%clk 0:00:04]}  Bxe4 {[%clk 0:00:41]} 40. Bxg7 {[%clk 0:00:05]}  Kg4 {[%clk 0:00:40]} 41. Bf6 {[%clk 0:00:05]}  Bf5 {[%clk 0:00:41]} 42. Bg5 {[%clk 0:00:06]}  Be6 {[%clk 0:00:42]} 43. g3 {[%clk 0:00:07]}  Bd5 {[%clk 0:00:40]} 44. Bf4 {[%clk 0:00:08]}  Bf3 {[%clk 0:00:40]} 45. Kg1 {[%clk 0:00:08]}  Be4 {[%clk 0:00:38]} 46. Kf2 {[%clk 0:00:09]}  Bf3 {[%clk 0:00:39]} 47. Ke3 {[%clk 0:00:10]}  Bd1 {[%clk 0:00:39]} 48. Kd4 {[%clk 0:00:11]}  Bf3 {[%clk 0:00:39]} 49. Ke5 {[%clk 0:00:12]}  Bd1 {[%clk 0:00:39]} 50. Kf6 {[%clk 0:00:13]}  Be2 {[%clk 0:00:40]} 51. Kg7 {[%clk 0:00:14]}  Bf3 {[%clk 0:00:40]} 52. Kh6 {[%clk 0:00:15]}  Bd1 {[%clk 0:00:41]} 53. Kg6 {[%clk 0:00:15]}  Be2 {[%clk 0:00:41]} 54. Kf6 {[%clk 0:00:16]}  Bd1 {[%clk 0:00:42]} 55. Ke5 {[%clk 0:00:17]}  Be2 {[%clk 0:00:43]} 56. Kd4 {[%clk 0:00:18]}  Bd1 {[%clk 0:00:43]} 57. Ke3 {[%clk 0:00:19]}  Bf3 {[%clk 0:00:44]} 58. Kd2 {[%clk 0:00:20]}  Bg2 {[%clk 0:00:44]} 59. Kd1 {[%clk 0:00:21]}  Bf3+ {[%clk 0:00:44]} 60. Kd2 {[%clk 0:00:22]}  Be4 {[%clk 0:00:45]} 61. Ke3 {[%clk 0:00:22]}  Bf3 {[%clk 0:00:45]} 62. Kf2 {[%clk 0:00:23]}  Bd1 {[%clk 0:00:45]} 63. Ke3 {[%clk 0:00:21]}  Bf3 {[%clk 0:00:45]} 1/2-1/2


[Site "https://www.chess.com"]

[Event "Titled Tuesday Blitz August 24 2021"]
[White "Demidov, Mikhail"]
[Black "Rottenwohrer Suarez, Juan"]
[WhiteFideId "4197143"]
[BlackFideId "32068182"]
[WhiteElo "2559"]
[BlackElo "2158"]
[Result "1/2-1/2"]
[Round "03"]
[TimeControl "180+1"]
[Date "2021.08.24"]
[WhiteClock "0:00:58"]
[BlackClock "0:00:23"]

1. Nf3 {[%clk 0:03:00]}  Nf6 {[%clk 0:02:59]} 2. g3 {[%clk 0:03:00]}  g6 {[%clk 0:02:59]} 3. b3 {[%clk 0:03:00]}  Bg7 {[%clk 0:03:00]} 4. Bb2 {[%clk 0:03:01]}  O-O {[%clk 0:03:00]} 5. Bg2 {[%clk 0:03:00]}  c5 {[%clk 0:03:01]} 6. c4 {[%clk 0:03:00]}  Nc6 {[%clk 0:03:01]} 7. O-O {[%clk 0:02:59]}  d6 {[%clk 0:02:50]} 8. d4 {[%clk 0:02:58]}  cxd4 {[%clk 0:02:42]} 9. Nxd4 {[%clk 0:02:57]}  Bd7 {[%clk 0:02:42]} 10. Nc2 {[%clk 0:02:56]}  a6 {[%clk 0:02:40]} 11. Nc3 {[%clk 0:02:55]}  Rb8 {[%clk 0:02:38]} 12. Ne3 {[%clk 0:02:50]}  b5 {[%clk 0:02:37]} 13. Qd2 {[%clk 0:02:49]}  Ne5 {[%clk 0:02:21]} 14. cxb5 {[%clk 0:02:47]}  axb5 {[%clk 0:02:21]} 15. Ncd5 {[%clk 0:02:46]}  Nxd5 {[%clk 0:02:11]} 16. Nxd5 {[%clk 0:02:45]}  e6 {[%clk 0:02:08]} 17. Nf4 {[%clk 0:02:39]}  d5 {[%clk 0:02:07]} 18. e4 {[%clk 0:02:38]}  dxe4 {[%clk 0:01:56]} 19. Bxe4 {[%clk 0:02:37]}  Bc6 {[%clk 0:01:54]} 20. Qxd8 {[%clk 0:02:29]}  Rfxd8 {[%clk 0:01:54]} 21. Bxe5 {[%clk 0:02:24]}  Bxe4 {[%clk 0:01:46]} 22. Bxb8 {[%clk 0:02:21]}  Bxa1 {[%clk 0:01:44]} 23. Rxa1 {[%clk 0:02:20]}  Rxb8 {[%clk 0:01:43]} 24. a4 {[%clk 0:02:19]}  Bc2 {[%clk 0:01:34]} 25. axb5 {[%clk 0:02:10]}  Rxb5 {[%clk 0:01:31]} 26. Ne2 {[%clk 0:02:00]}  Rxb3 {[%clk 0:01:22]} 27. Nd4 {[%clk 0:01:50]}  Rb1+ {[%clk 0:01:20]} 28. Rxb1 {[%clk 0:01:50]}  Bxb1 {[%clk 0:01:21]} 29. f4 {[%clk 0:01:50]}  h5 {[%clk 0:01:12]} 30. Kf2 {[%clk 0:01:49]}  Ba2 {[%clk 0:01:08]} 31. Ke3 {[%clk 0:01:48]}  f6 {[%clk 0:01:09]} 32. Ne2 {[%clk 0:01:41]}  Kf7 {[%clk 0:01:08]} 33. Nc3 {[%clk 0:01:41]}  Bb3 {[%clk 0:01:08]} 34. h4 {[%clk 0:01:39]}  Bd5 {[%clk 0:00:54]} 35. Ne2 {[%clk 0:01:38]}  e5 {[%clk 0:00:51]} 36. Nc3 {[%clk 0:01:34]}  Ke6 {[%clk 0:00:51]} 37. fxe5 {[%clk 0:01:29]}  Kxe5 {[%clk 0:00:48]} 38. Ne2 {[%clk 0:01:29]}  Kf5 {[%clk 0:00:42]} 39. Kf2 {[%clk 0:01:23]}  Kg4 {[%clk 0:00:38]} 40. Nf4 {[%clk 0:01:19]}  Bf7 {[%clk 0:00:35]} 41. Ng2 {[%clk 0:01:18]}  g5 {[%clk 0:00:31]} 42. Ne3+ {[%clk 0:01:06]}  Kh3 {[%clk 0:00:30]} 43. hxg5 {[%clk 0:01:05]}  fxg5 {[%clk 0:00:31]} 44. Nf5 {[%clk 0:01:04]}  Be6 {[%clk 0:00:24]} 45. Nd4 {[%clk 0:01:01]}  Bd7 {[%clk 0:00:24]} 46. Nf3 {[%clk 0:01:00]}  h4 {[%clk 0:00:22]} 47. Nxg5+ {[%clk 0:00:58]}  Kg4 {[%clk 0:00:22]} 48. gxh4 {[%clk 0:00:58]}  Kxh4 {[%clk 0:00:23]} 1/2-1/2


[Site "https://www.chess.com"]

[Event "Titled Tuesday Blitz August 24 2021"]
[White "Djordjevic, Vuk"]
[Black "Moroni, Luca Jr"]
[WhiteFideId "902098"]
[BlackFideId "865834"]
[WhiteElo "2463"]
[BlackElo "2491"]
[Result "0-1"]
[Round "03"]
[TimeControl "180+1"]
[Date "2021.08.24"]
[WhiteClock "0:00:03"]
[BlackClock "0:00:24"]

1. d4 {[%clk 0:03:00]}  g6 {[%clk 0:02:59]} 2. e4 {[%clk 0:02:59]}  Bg7 {[%clk 0:02:59]} 3. Nf3 {[%clk 0:02:58]}  d6 {[%clk 0:02:59]} 4. Nc3 {[%clk 0:02:58]}  Nf6 {[%clk 0:02:54]} 5. Be2 {[%clk 0:02:57]}  O-O {[%clk 0:02:54]} 6. O-O {[%clk 0:02:57]}  a6 {[%clk 0:02:54]} 7. a4 {[%clk 0:02:56]}  Nc6 {[%clk 0:02:54]} 8. Be3 {[%clk 0:02:56]}  Ng4 {[%clk 0:02:50]} 9. Bg5 {[%clk 0:02:54]}  h6 {[%clk 0:02:41]} 10. Bh4 {[%clk 0:02:54]}  Nf6 {[%clk 0:02:41]} 11. Re1 {[%clk 0:02:21]}  g5 {[%clk 0:02:37]} 12. Bg3 {[%clk 0:02:20]}  Nh5 {[%clk 0:02:36]} 13. d5 {[%clk 0:02:17]}  Nxg3 {[%clk 0:02:32]} 14. hxg3 {[%clk 0:02:17]}  Ne5 {[%clk 0:02:33]} 15. Nxe5 {[%clk 0:02:15]}  Bxe5 {[%clk 0:02:34]} 16. Qd2 {[%clk 0:01:49]}  e6 {[%clk 0:02:33]} 17. f4 {[%clk 0:01:47]}  Bg7 {[%clk 0:02:27]} 18. dxe6 {[%clk 0:01:27]}  Bxe6 {[%clk 0:02:15]} 19. f5 {[%clk 0:01:25]}  Bd7 {[%clk 0:02:14]} 20. Bc4 {[%clk 0:01:24]}  Bc6 {[%clk 0:01:54]} 21. Rab1 {[%clk 0:00:44]}  Be5 {[%clk 0:01:49]} 22. Qd3 {[%clk 0:00:40]}  g4 {[%clk 0:01:32]} 23. b3 {[%clk 0:00:34]}  Qg5 {[%clk 0:01:29]} 24. Ne2 {[%clk 0:00:33]}  Rae8 {[%clk 0:01:20]} 25. Nd4 {[%clk 0:00:32]}  Bd7 {[%clk 0:01:11]} 26. c3 {[%clk 0:00:31]}  h5 {[%clk 0:01:10]} 27. Qe3 {[%clk 0:00:27]}  Qxe3+ {[%clk 0:00:59]} 28. Rxe3 {[%clk 0:00:28]}  Bxd4 {[%clk 0:00:58]} 29. cxd4 {[%clk 0:00:29]}  Bxf5 {[%clk 0:00:59]} 30. Rbe1 {[%clk 0:00:27]}  Be6 {[%clk 0:00:55]} 31. d5 {[%clk 0:00:24]}  Bd7 {[%clk 0:00:53]} 32. Bd3 {[%clk 0:00:20]}  Re5 {[%clk 0:00:51]} 33. Rc1 {[%clk 0:00:20]}  c5 {[%clk 0:00:49]} 34. Re2 {[%clk 0:00:14]}  Kg7 {[%clk 0:00:47]} 35. Rf2 {[%clk 0:00:10]}  f6 {[%clk 0:00:47]} 36. a5 {[%clk 0:00:10]}  Be8 {[%clk 0:00:30]} 37. b4 {[%clk 0:00:06]}  cxb4 {[%clk 0:00:29]} 38. Rc4 {[%clk 0:00:06]}  Bb5 {[%clk 0:00:26]} 39. Rc7+ {[%clk 0:00:06]}  Rf7 {[%clk 0:00:26]} 40. Rxf7+ {[%clk 0:00:06]}  Kxf7 {[%clk 0:00:27]} 41. Bxb5 {[%clk 0:00:05]}  axb5 {[%clk 0:00:28]} 42. Rc2 {[%clk 0:00:05]}  Rxe4 {[%clk 0:00:26]} 43. Rc7+ {[%clk 0:00:06]}  Re7 {[%clk 0:00:25]} 44. Rc2 {[%clk 0:00:05]}  b3 {[%clk 0:00:25]} 45. Rb2 {[%clk 0:00:04]}  Re3 {[%clk 0:00:24]} 46. Rb1 {[%clk 0:00:03]}  Rxg3 {[%clk 0:00:24]} 0-1


[Site "https://www.chess.com"]

[Event "Titled Tuesday Blitz August 24 2021"]
[White "Dobrowolski, Piotr"]
[Black "Cunjalo, Faris"]
[WhiteFideId "1106236"]
[BlackFideId "14410710"]
[WhiteElo "2296"]
[BlackElo "2234"]
[Result "1-0"]
[Round "03"]
[TimeControl "180+1"]
[Date "2021.08.24"]
[WhiteClock "0:00:27"]
[BlackClock "0:01:17"]

1. e4 {[%clk 0:03:00]}  c5 {[%clk 0:02:54]} 2. c3 {[%clk 0:03:00]}  Nf6 {[%clk 0:02:54]} 3. e5 {[%clk 0:03:01]}  Nd5 {[%clk 0:02:55]} 4. d4 {[%clk 0:03:01]}  cxd4 {[%clk 0:02:55]} 5. Nf3 {[%clk 0:03:02]}  e6 {[%clk 0:02:55]} 6. cxd4 {[%clk 0:03:02]}  Nc6 {[%clk 0:02:56]} 7. Nc3 {[%clk 0:02:56]}  Nxc3 {[%clk 0:02:56]} 8. bxc3 {[%clk 0:02:57]}  d6 {[%clk 0:02:55]} 9. exd6 {[%clk 0:02:57]}  Qxd6 {[%clk 0:02:54]} 10. Bd3 {[%clk 0:02:57]}  Be7 {[%clk 0:02:54]} 11. O-O {[%clk 0:02:57]}  O-O {[%clk 0:02:54]} 12. Re1 {[%clk 0:02:57]}  b6 {[%clk 0:02:50]} 13. Ng5 {[%clk 0:02:57]}  Bxg5 {[%clk 0:02:45]} 14. Bxg5 {[%clk 0:02:56]}  Ne7 {[%clk 0:02:39]} 15. Qh5 {[%clk 0:02:45]}  Ng6 {[%clk 0:02:35]} 16. Re3 {[%clk 0:02:36]}  Bb7 {[%clk 0:01:49]} 17. Rh3 {[%clk 0:02:34]}  h6 {[%clk 0:01:43]} 18. Bxh6 {[%clk 0:02:10]}  Qd5 {[%clk 0:01:43]} 19. Qxd5 {[%clk 0:01:42]}  Bxd5 {[%clk 0:01:44]} 20. Bd2 {[%clk 0:01:42]}  Rac8 {[%clk 0:01:45]} 21. a4 {[%clk 0:01:33]}  Bc4 {[%clk 0:01:40]} 22. Bc2 {[%clk 0:01:33]}  Rfd8 {[%clk 0:01:37]} 23. Rg3 {[%clk 0:01:28]}  Ne7 {[%clk 0:01:32]} 24. Bh6 {[%clk 0:01:26]}  g6 {[%clk 0:01:26]} 25. Bg5 {[%clk 0:01:27]}  Rd7 {[%clk 0:01:26]} 26. Bf6 {[%clk 0:01:21]}  Nd5 {[%clk 0:01:27]} 27. Be5 {[%clk 0:01:22]}  Kf8 {[%clk 0:01:22]} 28. Rh3 {[%clk 0:01:16]}  Ke7 {[%clk 0:01:23]} 29. Bxg6 {[%clk 0:00:52]}  Rg8 {[%clk 0:01:20]} 30. Be4 {[%clk 0:00:48]}  f6 {[%clk 0:01:20]} 31. Rh7+ {[%clk 0:00:46]}  Kd8 {[%clk 0:01:21]} 32. Rxd7+ {[%clk 0:00:44]}  Kxd7 {[%clk 0:01:22]} 33. Bxd5 {[%clk 0:00:45]}  Bxd5 {[%clk 0:01:23]} 34. Bg3 {[%clk 0:00:43]}  Rc8 {[%clk 0:01:22]} 35. Ra3 {[%clk 0:00:43]}  a5 {[%clk 0:01:19]} 36. f3 {[%clk 0:00:43]}  Rc4 {[%clk 0:01:19]} 37. h4 {[%clk 0:00:41]}  Bc6 {[%clk 0:01:20]} 38. h5 {[%clk 0:00:41]}  Ke7 {[%clk 0:01:21]} 39. Bc7 {[%clk 0:00:40]}  Bxf3 {[%clk 0:01:18]} 40. Bxb6 {[%clk 0:00:41]}  Bxh5 {[%clk 0:01:18]} 41. Bxa5 {[%clk 0:00:41]}  Bd1 {[%clk 0:01:19]} 42. Bb4+ {[%clk 0:00:41]}  Kd7 {[%clk 0:01:19]} 43. a5 {[%clk 0:00:42]}  Kc7 {[%clk 0:01:20]} 44. a6 {[%clk 0:00:42]}  Kb8 {[%clk 0:01:21]} 45. a7+ {[%clk 0:00:41]}  Ka8 {[%clk 0:01:21]} 46. Bc5 {[%clk 0:00:42]}  Ra4 {[%clk 0:01:20]} 47. Rxa4 {[%clk 0:00:39]}  Bxa4 {[%clk 0:01:21]} 48. Kf2 {[%clk 0:00:38]}  f5 {[%clk 0:01:19]} 49. Ke3 {[%clk 0:00:38]}  Bc6 {[%clk 0:01:19]} 50. g3 {[%clk 0:00:38]}  Bb5 {[%clk 0:01:20]} 51. Kf4 {[%clk 0:00:39]}  Bc4 {[%clk 0:01:20]} 52. Ke5 {[%clk 0:00:39]}  Kb7 {[%clk 0:01:21]} 53. Kd6 {[%clk 0:00:31]}  Ba2 {[%clk 0:01:20]} 54. Bb6 {[%clk 0:00:31]}  Bb3 {[%clk 0:01:17]} 55. Kc5 {[%clk 0:00:31]}  Ba2 {[%clk 0:01:18]} 56. c4 {[%clk 0:00:30]}  Ka8 {[%clk 0:01:16]} 57. d5 {[%clk 0:00:30]}  exd5 {[%clk 0:01:16]} 58. cxd5 {[%clk 0:00:30]}  Kb7 {[%clk 0:01:17]} 59. d6 {[%clk 0:00:29]}  Be6 {[%clk 0:01:17]} 60. Kd4 {[%clk 0:00:30]}  Bd7 {[%clk 0:01:15]} 61. Ke5 {[%clk 0:00:30]}  Bc6 {[%clk 0:01:16]} 62. Bc5 {[%clk 0:00:28]}  Bd7 {[%clk 0:01:17]} 63. Kf6 {[%clk 0:00:27]} 1-0


[Site "https://www.chess.com"]

[Event "Titled Tuesday Blitz August 24 2021"]
[White "Drozdowski, Kacper"]
[Black "Maltsevskaya, Aleksandra"]
[WhiteFideId "1136720"]
[BlackFideId "24174041"]
[WhiteElo "2797"]
[BlackElo "2583"]
[Result "1-0"]
[Round "03"]
[TimeControl "180+1"]
[Date "2021.08.24"]
[WhiteClock "0:00:13"]
[BlackClock "0:00:01"]

1. e4 {[%clk 0:03:00]}  c6 {[%clk 0:02:57]} 2. d4 {[%clk 0:03:00]}  d5 {[%clk 0:02:57]} 3. e5 {[%clk 0:03:00]}  Bf5 {[%clk 0:02:56]} 4. Nf3 {[%clk 0:03:00]}  e6 {[%clk 0:02:55]} 5. Be2 {[%clk 0:03:00]}  c5 {[%clk 0:02:55]} 6. Be3 {[%clk 0:03:00]}  cxd4 {[%clk 0:02:52]} 7. Nxd4 {[%clk 0:02:59]}  Ne7 {[%clk 0:02:53]} 8. O-O {[%clk 0:02:58]}  Nbc6 {[%clk 0:02:53]} 9. c4 {[%clk 0:02:49]}  Bg6 {[%clk 0:02:38]} 10. Nc3 {[%clk 0:02:45]}  a6 {[%clk 0:02:37]} 11. cxd5 {[%clk 0:02:43]}  Nxd5 {[%clk 0:02:38]} 12. Nxd5 {[%clk 0:02:41]}  Qxd5 {[%clk 0:02:36]} 13. Nxc6 {[%clk 0:02:32]}  bxc6 {[%clk 0:02:22]} 14. Rc1 {[%clk 0:02:27]}  Be7 {[%clk 0:02:20]} 15. Bf3 {[%clk 0:02:06]}  Be4 {[%clk 0:02:17]} 16. Bxe4 {[%clk 0:02:06]}  Qxe4 {[%clk 0:02:16]} 17. Qd4 {[%clk 0:02:06]}  Qxd4 {[%clk 0:02:00]} 18. Bxd4 {[%clk 0:02:05]}  Kd7 {[%clk 0:02:01]} 19. Bb6 {[%clk 0:01:46]}  Rhc8 {[%clk 0:01:54]} 20. Rfd1+ {[%clk 0:01:45]}  Ke8 {[%clk 0:01:54]} 21. b3 {[%clk 0:01:35]}  Rab8 {[%clk 0:01:51]} 22. Bd4 {[%clk 0:01:21]}  Rb5 {[%clk 0:01:51]} 23. Kf1 {[%clk 0:01:16]}  f6 {[%clk 0:01:16]} 24. exf6 {[%clk 0:01:15]}  gxf6 {[%clk 0:01:17]} 25. Ke2 {[%clk 0:01:14]}  Rd5 {[%clk 0:01:16]} 26. Be3 {[%clk 0:01:12]}  Kd7 {[%clk 0:01:16]} 27. Rc4 {[%clk 0:01:11]}  e5 {[%clk 0:01:17]} 28. Rh4 {[%clk 0:01:08]}  Ke6 {[%clk 0:01:12]} 29. Rxh7 {[%clk 0:01:06]}  a5 {[%clk 0:01:12]} 30. Rh4 {[%clk 0:01:04]}  f5 {[%clk 0:01:11]} 31. Rh6+ {[%clk 0:01:02]}  Kf7 {[%clk 0:01:12]} 32. Rxc6 {[%clk 0:00:55]}  Rxc6 {[%clk 0:00:43]} 33. Rxd5 {[%clk 0:00:55]}  f4 {[%clk 0:00:44]} 34. Bd2 {[%clk 0:00:37]}  Ke6 {[%clk 0:00:37]} 35. Rxa5 {[%clk 0:00:34]}  Rc2 {[%clk 0:00:37]} 36. Ra6+ {[%clk 0:00:26]}  Kf5 {[%clk 0:00:27]} 37. Kd3 {[%clk 0:00:26]}  Rc8 {[%clk 0:00:25]} 38. g3 {[%clk 0:00:14]}  e4+ {[%clk 0:00:24]} 39. Ke2 {[%clk 0:00:13]}  f3+ {[%clk 0:00:14]} 40. Ke1 {[%clk 0:00:14]}  Rc2 {[%clk 0:00:10]} 41. Kd1 {[%clk 0:00:14]}  Rc8 {[%clk 0:00:08]} 42. h3 {[%clk 0:00:15]}  Rd8 {[%clk 0:00:08]} 43. Ke1 {[%clk 0:00:14]}  Bc5 {[%clk 0:00:08]} 44. Ra5 {[%clk 0:00:13]}  Rd5 {[%clk 0:00:08]} 45. b4 {[%clk 0:00:13]}  e3 {[%clk 0:00:01]} 46. Rxc5 {[%clk 0:00:13]} 1-0


[Site "https://www.chess.com"]

[Event "Titled Tuesday Blitz August 24 2021"]
[White "Fedoseev, Vladimir"]
[Black "Wagh Suyog"]
[WhiteFideId "24130737"]
[BlackFideId "25071688"]
[WhiteElo "2756"]
[BlackElo "2219"]
[Result "1-0"]
[Round "03"]
[TimeControl "180+1"]
[Date "2021.08.24"]
[WhiteClock "0:00:11"]
[BlackClock "0:00:03"]

1. b3 {[%clk 0:02:47]}  d5 {[%clk 0:02:58]} 2. Bb2 {[%clk 0:02:48]}  Bg4 {[%clk 0:02:58]} 3. h3 {[%clk 0:02:46]}  Bh5 {[%clk 0:02:58]} 4. d3 {[%clk 0:02:46]}  c6 {[%clk 0:02:58]} 5. Nd2 {[%clk 0:02:47]}  e6 {[%clk 0:02:58]} 6. Ngf3 {[%clk 0:02:47]}  Nf6 {[%clk 0:02:58]} 7. g4 {[%clk 0:02:46]}  Bg6 {[%clk 0:02:58]} 8. h4 {[%clk 0:02:46]}  h5 {[%clk 0:02:23]} 9. g5 {[%clk 0:02:41]}  Ng4 {[%clk 0:02:19]} 10. e3 {[%clk 0:02:38]}  Nd7 {[%clk 0:02:19]} 11. Qe2 {[%clk 0:02:34]}  a5 {[%clk 0:02:17]} 12. a4 {[%clk 0:02:31]}  Qc7 {[%clk 0:02:16]} 13. Bh3 {[%clk 0:02:29]}  O-O-O {[%clk 0:02:15]} 14. Nd4 {[%clk 0:02:23]}  e5 {[%clk 0:02:13]} 15. N4f3 {[%clk 0:02:22]}  Bd6 {[%clk 0:02:09]} 16. Ng1 {[%clk 0:02:17]}  e4 {[%clk 0:02:02]} 17. dxe4 {[%clk 0:02:12]}  dxe4 {[%clk 0:01:53]} 18. Nc4 {[%clk 0:01:48]}  Bb4+ {[%clk 0:01:47]} 19. Kf1 {[%clk 0:01:45]}  Kb8 {[%clk 0:01:38]} 20. Bxg7 {[%clk 0:01:42]}  Rhg8 {[%clk 0:01:36]} 21. Bd4 {[%clk 0:01:42]}  f5 {[%clk 0:01:28]} 22. c3 {[%clk 0:01:17]}  Be7 {[%clk 0:01:26]} 23. b4 {[%clk 0:01:17]}  axb4 {[%clk 0:01:03]} 24. cxb4 {[%clk 0:01:18]}  Bxb4 {[%clk 0:01:04]} 25. Qb2 {[%clk 0:01:15]}  c5 {[%clk 0:00:59]} 26. Bc3 {[%clk 0:01:15]}  Bf7 {[%clk 0:00:55]} 27. Na3 {[%clk 0:01:13]}  f4 {[%clk 0:00:49]} 28. Nb5 {[%clk 0:01:10]}  Bc4+ {[%clk 0:00:40]} 29. Ne2 {[%clk 0:01:04]}  Qc6 {[%clk 0:00:32]} 30. Bxg4 {[%clk 0:01:00]}  hxg4 {[%clk 0:00:18]} 31. Bxb4 {[%clk 0:00:51]}  cxb4 {[%clk 0:00:18]} 32. Kg1 {[%clk 0:00:50]}  g3 {[%clk 0:00:15]} 33. Nxf4 {[%clk 0:00:49]}  gxf2+ {[%clk 0:00:15]} 34. Kxf2 {[%clk 0:00:50]}  Nc5 {[%clk 0:00:13]} 35. Qe5+ {[%clk 0:00:43]}  Ka8 {[%clk 0:00:13]} 36. Nd4 {[%clk 0:00:38]}  Qb6 {[%clk 0:00:11]} 37. a5 {[%clk 0:00:37]}  Qa7 {[%clk 0:00:10]} 38. Kg3 {[%clk 0:00:36]}  Rge8 {[%clk 0:00:09]} 39. Qg7 {[%clk 0:00:34]}  Nd3 {[%clk 0:00:09]} 40. Raf1 {[%clk 0:00:25]}  Bb3 {[%clk 0:00:08]} 41. h5 {[%clk 0:00:21]}  Rg8 {[%clk 0:00:04]} 42. Qf6 {[%clk 0:00:18]}  Qxa5 {[%clk 0:00:05]} 43. g6 {[%clk 0:00:16]}  Ba4 {[%clk 0:00:04]} 44. h6 {[%clk 0:00:16]}  Rdf8 {[%clk 0:00:03]} 45. h7 {[%clk 0:00:16]}  Rxf6 {[%clk 0:00:02]} 46. hxg8=Q+ {[%clk 0:00:16]}  Ka7 {[%clk 0:00:03]} 47. Rh5 {[%clk 0:00:16]}  Qb6 {[%clk 0:00:02]} 48. g7 {[%clk 0:00:16]}  Nxf4 {[%clk 0:00:02]} 49. Rxf4 {[%clk 0:00:15]}  Rg6+ {[%clk 0:00:02]} 50. Rg4 {[%clk 0:00:15]}  Qd6+ {[%clk 0:00:02]} 51. Kh3 {[%clk 0:00:15]}  Bd7 {[%clk 0:00:02]} 52. Nb5+ {[%clk 0:00:15]}  Bxb5 {[%clk 0:00:02]} 53. Rxg6 {[%clk 0:00:12]}  Qxg6 {[%clk 0:00:02]} 54. Rxb5 {[%clk 0:00:11]}  Qh6+ {[%clk 0:00:02]} 55. Kg4 {[%clk 0:00:12]}  Qg6+ {[%clk 0:00:03]} 56. Rg5 {[%clk 0:00:12]}  Qe6+ {[%clk 0:00:03]} 57. Qxe6 {[%clk 0:00:11]} 1-0


[Site "https://www.chess.com"]